fUSD/lending_fUSD_20241116
["ID","MTS","AMOUNT","RATE_DAILY","PERIOD"]
[342385253,1731781937814,-648.13,9.999e-05,2]
[342385254,1731781937823,-581.34,9.999e-05,2]
[342385255,1731781937833,-581.34,9.999e-05,2]
[342385256,1731781937843,-581.56,9.999e-05,2]
[342385257,1731781937855,-500.0,9.999e-05,2]
[342385258,1731781937864,-500.0,9.999e-05,2]
[342385259,1731781937874,-500.0,9.999e-05,2]
[342385260,1731781937883,-500.0,9.999e-05,2]
[342385261,1731781937892,-500.0,9.999e-05,2]
[342385262,1731781937901,-475.97,9.999e-05,2]
[342385263,1731781937911,-747.03,9.999e-05,2]
[342385264,1731781937920,-747.03,9.999e-05,2]
[342385265,1731781937930,-747.03,9.999e-05,2]
[342385266,1731781937940,-747.03,9.999e-05,2]
[342385267,1731781937949,-747.03,9.999e-05,2]
[342385268,1731781937959,-747.03,9.999e-05,2]
[342385269,1731781937969,-747.16946062,9.999e-05,2]
[342385270,1731781937978,-500.0,9.999e-05,2]
[342385271,1731781937988,-500.0,9.999e-05,2]
[342385272,1731781937997,-605.68,9.999e-05,2]
[342385273,1731781938006,-1454.31,9.999e-05,2]
[342385274,1731781938016,-1454.31,9.999e-05,2]
[342385275,1731781938026,-1454.31,9.999e-05,2]
[342385276,1731781938036,-1454.31,9.999e-05,2]
[342385277,1731781938046,-1454.31,9.999e-05,2]
[342385278,1731781938057,-1454.31,9.999e-05,2]
[342385279,1731781938069,-1454.31,9.999e-05,2]
[342385280,1731781938079,-1454.31,9.999e-05,2]
[342385281,1731781938090,-1454.31,9.999e-05,2]
[342385282,1731781938103,-1454.43,9.999e-05,2]
[342385283,1731781938114,-500.0,9.999e-05,2]
[342385284,1731781938124,-424.36,9.999e-05,2]
[342385285,1731781938134,-1704.03,9.999e-05,2]
[342385286,1731781938147,-1704.03,9.999e-05,2]
[342385287,1731781938157,-1704.03,9.999e-05,2]
[342385288,1731781938167,-1704.03,9.999e-05,2]
[342385289,1731781938177,-1704.03,9.999e-05,2]
[342385290,1731781938187,-1704.03,9.999e-05,2]
[342385291,1731781938198,-1704.11980261,9.999e-05,2]
[342385292,1731781938208,-500.0,9.999e-05,2]
[342385293,1731781938219,-500.0,9.999e-05,2]
[342385294,1731781938229,-362.92,9.999e-05,2]
[342385295,1731781938239,-500.0,9.999e-05,2]
[342385296,1731781938249,-500.0,9.999e-05,2]
[342385297,1731781938259,-500.0,9.999e-05,2]
[342385298,1731781938269,-500.0,9.999e-05,2]
[342385299,1731781938279,-360.76,9.999e-05,2]
[342385300,1731781938289,-839.65,9.999e-05,2]
[342385301,1731781938299,-839.65,9.999e-05,2]
[342385302,1731781938309,-839.65,9.999e-05,2]
[342385303,1731781938318,-839.65,9.999e-05,2]
[342385304,1731781938328,-839.65,9.999e-05,2]
[342385305,1731781938337,-839.65,9.999e-05,2]
[342385306,1731781938351,-839.7,9.999e-05,2]
[342385307,1731781938360,-590.44,9.999e-05,2]
[342385308,1731781938370,-590.44,9.999e-05,2]
[342385309,1731781938380,-590.44,9.999e-05,2]
[342385310,1731781938390,-590.44,9.999e-05,2]
[342385311,1731781938400,-590.44,9.999e-05,2]
[342385312,1731781938410,-590.44,9.999e-05,2]
[342385313,1731781938419,-590.52,9.999e-05,2]
[342385314,1731781938429,-1026.66,9.999e-05,2]
[342385315,1731781938438,-1026.66,9.999e-05,2]
[342385316,1731781938447,-1026.66,9.999e-05,2]
[342385317,1731781938458,-1026.66,9.999e-05,2]
[342385318,1731781938467,-1026.66,9.999e-05,2]
[342385319,1731781938476,-1026.66,9.999e-05,2]
[342385320,1731781938487,-1026.8,9.999e-05,2]
[342385321,1731781938497,-1128.16,9.999e-05,2]
[342385322,1731781938507,-1128.16,9.999e-05,2]
[342385323,1731781938516,-1128.16,9.999e-05,2]
[342385324,1731781938526,-1128.16,9.999e-05,2]
[342385325,1731781938535,-1128.16,9.999e-05,2]
[342385326,1731781938545,-1128.16,9.999e-05,2]
[342385327,1731781938554,-1128.39434975,9.999e-05,2]
[342385328,1731781938563,-500.0,9.999e-05,2]
[342385329,1731781938573,-500.0,9.999e-05,2]
[342385330,1731781938583,-591.62,9.999e-05,2]
[342385331,1731781938593,-864.18,9.999e-05,2]
[342385332,1731781938606,-864.18,9.999e-05,2]
[342385333,1731781938616,-864.18,9.999e-05,2]
[342385334,1731781938625,-864.18,9.999e-05,2]
[342385335,1731781938635,-864.18,9.999e-05,2]
[342385336,1731781938644,-864.18,9.999e-05,2]
[342385337,1731781938654,-864.34,9.999e-05,2]
[342385338,1731781938664,-500.0,9.999e-05,2]
[342385339,1731781938673,-696.5,9.999e-05,2]
[342385340,1731781938683,-500.0,9.999e-05,2]
[342385341,1731781938693,-696.5,9.999e-05,2]
[342385342,1731781938703,-500.0,9.999e-05,2]
[342385343,1731781938712,-696.5,9.999e-05,2]
[342385344,1731781938722,-429.47,9.999e-05,2]
[342385345,1731781938731,-696.5,9.999e-05,2]
[342385346,1731781938740,-696.5,9.999e-05,2]
[342385347,1731781938750,-696.5,9.999e-05,2]
[342385348,1731781938760,-696.5063261,9.999e-05,2]
[342385349,1731781938769,-695.01,9.999e-05,2]
[342385350,1731781938779,-695.01,9.999e-05,2]
[342385351,1731781938790,-695.01,9.999e-05,2]
[342385352,1731781938800,-500.0,9.999e-05,2]
[342385353,1731781938810,-695.01,9.999e-05,2]
[342385354,1731781938822,-500.0,9.999e-05,2]
[342385355,1731781938832,-569.58906693,9.999e-05,2]
[342385356,1731781938842,-695.01,9.999e-05,2]
[342385357,1731781938855,-695.01,9.999e-05,2]
[342385358,1731781938865,-695.08,9.999e-05,2]
[342385359,1731781938874,-500.0,9.999e-05,2]
[342385360,1731781938884,-500.0,9.999e-05,2]
[342385361,1731781938894,-500.0,9.999e-05,2]
[342385362,1731781938904,-500.0,9.999e-05,2]
[342385363,1731781938913,-165.17,9.999e-05,2]
[342385364,1731781938923,-814.0,0.0001,2]
[342385365,1731781938932,-1312.901,0.0001,2]
[342385366,1731781938941,-1054.522,0.0001,2]
[342385367,1731781938951,-5935.0,0.0001,2]
[342385368,1731781938960,-563.0,0.0001,2]
[342385369,1731781938970,-150.0,0.0001,2]
[342385370,1731781938979,-1255.0,0.0001,2]
[342385371,1731781938989,-421328.35747152,0.0001,2]
[342385372,1731781939009,-455.615,0.0001,2]
[342385373,1731781939025,-1356.8812296,0.0001,2]
[342385374,1731781939036,-332.84310986,0.0001,2]
[342385375,1731781939047,-4749.98426,0.0001,2]
[342385376,1731781939059,-2994.000001,0.0001,2]
[342385377,1731781939072,-9114.6545444,0.0001,2]
[342385378,1731781939083,-380.354685,0.0001,2]
[342385379,1731781939097,-6562.89607517,0.0001,2]
[342385380,1731781939109,-351.553744,0.0001,2]
[342385381,1731782011151,500.0,0.00024999,120]
[342385382,1731782301263,238.21,6.896e-05,2]
[342385383,1731782367411,1113.81,8.219e-05,2]
[342385384,1731782375518,200.98,8.498e-05,2]
[342385385,1731782401574,5031.1,8.498e-05,2]
[342385386,1731782418815,250.0,8.459e-05,2]
[342385387,1731782488041,1137.23,8.471e-05,2]
[342385388,1731782488261,1137.23,8.473e-05,2]
[342385389,1731782488529,1137.23,8.476e-05,2]
[342385390,1731782488751,1137.23,8.478e-05,2]
[342385391,1731782488948,1137.23,8.48e-05,2]
[342385392,1731782489182,1137.23,8.482e-05,2]
[342385393,1731782489607,1137.23,8.485e-05,2]
[342385394,1731782489868,1137.23,8.487e-05,2]
[342385395,1731782490165,1137.23,8.489e-05,2]
[342385396,1731782490424,1137.23,8.491e-05,2]
[342385397,1731782490727,1137.23,8.493e-05,2]
[342385398,1731782490974,1137.23,8.496e-05,2]
[342385399,1731782494012,1137.23,8.498e-05,2]
[342385400,1731782494359,1137.23,8.5e-05,2]
[342385401,1731782495087,1081.65,8.471e-05,2]
[342385403,1731782566485,875.4,8.321e-05,2]
[342385404,1731782595190,300.0,8.238e-05,2]
[342385405,1731782609882,500.0,0.00024999,120]
[342385406,1731782641679,3006.15,8.238e-05,2]
[342385408,1731782744111,-1098.79219866,8.502e-05,2]
[342385409,1731782808914,250.0,8.209e-05,2]
[342385410,1731782838103,-38.43780134,8.502e-05,2]
[342385411,1731782838128,-1137.23,8.504e-05,2]
[342385412,1731782838153,-1137.23,8.507e-05,2]
[342385413,1731782838175,-498.74,8.507e-05,2]
[342385414,1731782838200,-1137.23,8.509e-05,2]
[342385415,1731782838224,-152.6127068,8.509e-05,2]
[342385416,1731782838249,-1137.23,8.511e-05,2]
[342385417,1731782838274,-1137.23,8.513e-05,2]
[342385418,1731782838296,-150.0,8.603e-05,2]
[342385419,1731782838319,-164.69,8.632e-05,2]
[342385420,1731782838342,-394.55,8.67e-05,2]
[342385421,1731782838365,-1000.0,8.686e-05,2]
[342385422,1731782838391,-12.02491959,8.696e-05,2]
[342385423,1731782853140,-487.97508041,8.696e-05,2]
[342385424,1731782853443,-584.51069861,8.84e-05,2]
[342385425,1731782854098,-3665.86280139,8.84e-05,2]
[342385426,1731782854121,-2981.601,8.939e-05,2]
[342385427,1731782854142,-174.757,8.939e-05,2]
[342385428,1731782854164,-30921.6191,8.94e-05,2]
[342385429,1731782854186,-1500.0,9e-05,3]
[342385430,1731782854207,-432.72,9.041e-05,2]
[342385431,1731782854228,-763.61,9.041e-05,2]
[342385432,1731782854250,-763.61,9.041e-05,2]
[342385433,1731782854272,-763.61,9.041e-05,2]
[342385434,1731782854294,-150.0,9.099e-05,2]
[342385435,1731782854316,-3000.0,9.1e-05,3]
[342385436,1731782854336,-179.39,9.167e-05,2]
[342385437,1731782854357,-300.0,9.178e-05,2]
[342385438,1731782854378,-1121.45,9.178e-05,2]
[342385439,1731782854404,-4500.0,9.2e-05,3]
[342385440,1731782854426,-811.12794584,9.279e-05,2]
[342385441,1731782854450,-1750.1539,9.289e-05,2]
[342385442,1731782854472,-2214.3899,9.289e-05,2]
[342385443,1731782854493,-939.8361,9.289e-05,2]
[342385444,1731782854513,-1513.864,9.289e-05,2]
[342385445,1731782854534,-263.6189,9.289e-05,2]
[342385446,1731782854557,-6000.0,9.3e-05,3]
[342385447,1731782854578,-150.0,9.344e-05,2]
[342385448,1731782854599,-17289.5939,9.389e-05,2]
[342385449,1731782854622,-100000.0,9.389e-05,2]
[342385450,1731782854643,-2500.0,9.389e-05,2]
[342385451,1731782854665,-7500.0,9.4e-05,3]
[342385452,1731782854685,-150.13,9.452e-05,2]
[342385453,1731782854706,-2217.5112,9.489e-05,2]
[342385454,1731782854726,-488.4935,9.489e-05,2]
[342385455,1731782854747,-3901.9772,9.489e-05,2]
[342385456,1731782854767,-1000.0,9.489e-05,2]
[342385457,1731782854788,-1500.0,9.5e-05,3]
[342385458,1731782854810,-432.19599862,9.563e-05,2]
[342385459,1731782854831,-500.0,9.563e-05,2]
[342385460,1731782854852,-201.13367907,9.563e-05,2]
[342385461,1731782854872,-500.0,9.563e-05,2]
[342385462,1731782854892,-500.0,9.563e-05,2]
[342385463,1731782854913,-500.0,9.589e-05,2]
[342385464,1731782854933,-500.4533037,9.589e-05,2]
[342385465,1731782854954,-500.08480686,9.589e-05,2]
[342385466,1731782854974,-220.07998379,9.589e-05,2]
[342385467,1731782854994,-500.0,9.589e-05,2]
[342385468,1731782855015,-500.0,9.589e-05,2]
[342385469,1731782855035,-500.0,9.589e-05,2]
[342385470,1731782855057,-28.95773767,9.589e-05,2]
[342385492,1731782947099,-1000.0,8.833e-05,2]
[342385493,1731782958122,-150.0,9e-05,2]
[342385498,1731782967938,445.74,8.818e-05,2]
[342385510,1731783015009,1058.11,8.219e-05,2]
[342385511,1731783028473,1006.69,0.00025,60]
[342385512,1731783028763,1006.69,0.00025,60]
[342385513,1731783028800,500.0,0.00025,60]
[342385514,1731783029064,514.86,0.00025,60]
[342385515,1731783029098,1006.69,0.00025,60]
[342385516,1731783029349,1006.69,0.00025,60]
[342385517,1731783029856,1006.69,0.00025,60]
[342385518,1731783029961,1006.69,0.00025,60]
[342385519,1731783030211,1006.69,0.00025,60]
[342385520,1731783030821,1006.69,0.00025,60]
[342385521,1731783030979,1006.69,0.00025,60]
[342385522,1731783031031,595.34,0.00025,60]
[342385523,1731783031137,1006.69,0.00025,60]
[342385524,1731783031341,595.34,0.00025,60]
[342385525,1731783031432,1006.69,0.00025,60]
[342385526,1731783031700,1006.69,0.00025,60]
[342385527,1731783031754,595.34,0.00025,60]
[342385528,1731783031967,1006.69,0.00025,60]
[342385529,1731783032024,595.34,0.00025,60]
[342385530,1731783032052,500.0,0.00025,60]
[342385531,1731783032075,-762.37,9.1e-05,2]
[342385533,1731783032084,-433.27,9.178e-05,2]
[342385535,1731783032094,-150.0,9.288e-05,2]
[342385537,1731783032103,-300.0,9.288e-05,2]
[342385539,1731783032113,-84085.9281,9.289e-05,2]
[342385541,1731783032122,-7067.0186,9.289e-05,2]
[342385543,1731783032132,-2500.0,9.389e-05,2]
[342385545,1731783032141,-150.0,9.562e-05,2]
[342385547,1731783032151,-433.27,9.57e-05,2]
[342385549,1731783032161,-1263.83,9.57e-05,2]
[342385551,1731783032170,-433.27,9.57e-05,2]
[342385553,1731783032184,-433.27,9.57e-05,2]
[342385555,1731783032194,-471.04226233,9.589e-05,2]
[342385557,1731783032204,-500.0,9.589e-05,2]
[342385559,1731783032213,-500.0,9.589e-05,2]
[342385561,1731783032222,-501.04855371,9.589e-05,2]
[342385563,1731783032232,-500.0,9.589e-05,2]
[342385565,1731783032242,-500.0,9.589e-05,2]
[342385567,1731783032251,-500.0,9.589e-05,2]
[342385569,1731783032261,-500.0,9.589e-05,2]
[342385570,1731783032270,-500.0,9.589e-05,2]
[342385571,1731783032280,-500.0,9.589e-05,2]
[342385572,1731783032289,-500.0,9.589e-05,2]
[342385573,1731783032299,-500.0,9.589e-05,2]
[342385574,1731783032308,-500.0,9.589e-05,2]
[342385575,1731783032318,-500.0,9.589e-05,2]
[342385576,1731783032327,-500.5609587,9.589e-05,2]
[342385577,1731783032337,-500.0,9.589e-05,2]
[342385578,1731783032348,-500.0,9.589e-05,2]
[342385579,1731783032358,-500.0,9.589e-05,2]
[342385580,1731783032368,-500.0,9.589e-05,2]
[342385581,1731783032378,-500.37383162,9.589e-05,2]
[342385582,1731783032388,-500.0,9.589e-05,2]
[342385583,1731783032398,-500.0,9.589e-05,2]
[342385584,1731783032407,-500.0,9.589e-05,2]
[342385585,1731783032421,-500.0,9.589e-05,2]
[342385586,1731783032435,-500.0,9.589e-05,2]
[342385587,1731783032448,-500.0,9.589e-05,2]
[342385588,1731783032459,-500.0,9.589e-05,2]
[342385589,1731783032469,-500.0,9.589e-05,2]
[342385590,1731783032479,-525.41302865,9.589e-05,2]
[342385591,1731783032490,-500.0,9.589e-05,2]
[342385592,1731783032499,-265.60259071,9.589e-05,2]
[342385593,1731783032509,-500.0,9.589e-05,2]
[342385594,1731783032521,-500.0,9.589e-05,2]
[342385595,1731783032531,-500.0,9.589e-05,2]
[342385596,1731783032540,-500.0,9.589e-05,2]
[342385597,1731783032551,-500.0,9.589e-05,2]
[342385598,1731783032560,-500.0,9.589e-05,2]
[342385599,1731783032570,-500.0,9.589e-05,2]
[342385600,1731783032579,-403.25947648,9.589e-05,2]
[342385601,1731783032588,-500.0,9.589e-05,2]
[342385602,1731783032598,-500.0,9.589e-05,2]
[342385603,1731783032609,-500.0,9.589e-05,2]
[342385604,1731783032618,-500.0,9.589e-05,2]
[342385605,1731783032627,-500.0,9.589e-05,2]
[342385606,1731783032637,-500.0,9.589e-05,2]
[342385607,1731783032646,-500.0,9.589e-05,2]
[342385608,1731783032656,-500.0,9.589e-05,2]
[342385609,1731783032665,-500.0,9.589e-05,2]
[342385610,1731783032678,-500.0,9.589e-05,2]
[342385611,1731783032688,-500.0,9.589e-05,2]
[342385612,1731783032698,-500.0,9.589e-05,2]
[342385613,1731783032707,-500.0,9.589e-05,2]
[342385614,1731783032717,-531.96432868,9.589e-05,2]
[342385615,1731783032726,-207.97554879,9.589e-05,2]
[342385616,1731783032735,-500.0,9.589e-05,2]
[342385617,1731783032745,-500.0,9.589e-05,2]
[342385618,1731783032755,-500.0,9.589e-05,2]
[342385619,1731783032765,-500.0,9.589e-05,2]
[342385620,1731783032775,-500.0,9.589e-05,2]
[342385621,1731783032784,-500.0,9.589e-05,2]
[342385622,1731783032794,-500.0,9.589e-05,2]
[342385623,1731783032803,-500.0,9.589e-05,2]
[342385624,1731783032813,-500.0,9.589e-05,2]
[342385625,1731783032822,-500.0,9.589e-05,2]
[342385626,1731783032832,-500.0,9.589e-05,2]
[342385627,1731783032841,-500.0,9.589e-05,2]
[342385628,1731783032850,-500.0,9.589e-05,2]
[342385629,1731783032859,-500.0,9.589e-05,2]
[342385630,1731783032868,-500.0,9.589e-05,2]
[342385631,1731783032877,-500.0,9.589e-05,2]
[342385632,1731783032886,-500.0,9.589e-05,2]
[342385633,1731783032895,-500.0,9.589e-05,2]
[342385634,1731783032904,-500.0,9.589e-05,2]
[342385635,1731783032913,-500.0,9.589e-05,2]
[342385636,1731783032924,-500.0,9.589e-05,2]
[342385637,1731783032934,-500.0,9.589e-05,2]
[342385638,1731783032944,-500.0,9.589e-05,2]
[342385639,1731783032953,-500.0,9.589e-05,2]
[342385640,1731783032963,-500.0,9.589e-05,2]
[342385641,1731783032972,-500.0,9.589e-05,2]
[342385642,1731783032985,-500.0,9.589e-05,2]
[342385643,1731783032995,-500.0,9.589e-05,2]
[342385644,1731783033004,-500.0,9.589e-05,2]
[342385645,1731783033015,-500.0,9.589e-05,2]
[342385646,1731783033025,-500.0,9.589e-05,2]
[342385647,1731783033035,-500.0,9.589e-05,2]
[342385648,1731783033044,-500.0,9.589e-05,2]
[342385649,1731783033054,-500.0,9.589e-05,2]
[342385650,1731783033063,-578.94207601,9.589e-05,2]
[342385651,1731783033073,-500.0,9.589e-05,2]
[342385652,1731783033083,-500.0,9.589e-05,2]
[342385653,1731783033097,-500.0,9.589e-05,2]
[342385654,1731783033107,-486.08757078,9.589e-05,2]
[342385655,1731783033117,-500.0,9.589e-05,2]
[342385656,1731783033126,-500.0,9.589e-05,2]
[342385657,1731783033136,-669.57,9.589e-05,2]
[342385658,1731783033146,-669.57,9.589e-05,2]
[342385659,1731783033156,-669.57,9.589e-05,2]
[342385660,1731783033165,-669.57,9.589e-05,2]
[342385661,1731783033176,-669.57,9.589e-05,2]
[342385662,1731783033186,-669.57,9.589e-05,2]
[342385663,1731783033196,-500.0,9.589e-05,2]
[342385664,1731783033206,-669.57,9.589e-05,2]
[342385665,1731783033215,-500.0,9.589e-05,2]
[342385666,1731783033225,-669.57,9.589e-05,2]
[342385667,1731783033234,-500.0,9.589e-05,2]
[342385668,1731783033244,-669.57,9.589e-05,2]
[342385669,1731783033253,-421.02944456,9.589e-05,2]
[342385670,1731783033263,-669.57,9.589e-05,2]
[342385671,1731783033272,-669.57,9.589e-05,2]
[342385672,1731783033282,-669.57,9.589e-05,2]
[342385673,1731783033292,-669.57,9.589e-05,2]
[342385674,1731783033302,-669.57,9.589e-05,2]
[342385675,1731783033312,-669.57,9.589e-05,2]
[342385676,1731783033322,-500.0,9.589e-05,2]
[342385677,1731783033332,-669.57,9.589e-05,2]
[342385678,1731783033341,-500.0,9.589e-05,2]
[342385679,1731783033351,-669.57,9.589e-05,2]
[342385680,1731783033361,-669.57,9.589e-05,2]
[342385681,1731783033371,-669.57,9.589e-05,2]
[342385682,1731783033380,-669.57,9.589e-05,2]
[342385683,1731783033390,-669.57,9.589e-05,2]
[342385684,1731783033400,-669.57,9.589e-05,2]
[342385685,1731783033410,-669.57,9.589e-05,2]
[342385686,1731783033421,-500.0,9.589e-05,2]
[342385687,1731783033432,-500.03658969,9.589e-05,2]
[342385688,1731783033445,-669.64,9.589e-05,2]
[342385689,1731783033460,-500.0,9.589e-05,2]
[342385690,1731783033470,-500.0,9.589e-05,2]
[342385691,1731783033480,-500.0,9.589e-05,2]
[342385692,1731783033491,-500.0,9.589e-05,2]
[342385693,1731783033502,-500.0,9.589e-05,2]
[342385694,1731783033512,-500.0,9.589e-05,2]
[342385695,1731783033522,-500.0,9.589e-05,2]
[342385696,1731783033533,-500.0,9.589e-05,2]
[342385697,1731783033543,-500.0,9.589e-05,2]
[342385698,1731783033552,-500.04484868,9.589e-05,2]
[342385699,1731783033563,-500.0,9.589e-05,2]
[342385700,1731783033573,-500.0,9.589e-05,2]
[342385701,1731783033584,-500.0,9.589e-05,2]
[342385702,1731783033594,-500.0,9.589e-05,2]
[342385703,1731783033604,-500.0,9.589e-05,2]
[342385704,1731783033614,-500.0,9.589e-05,2]
[342385705,1731783033624,-500.0,9.589e-05,2]
[342385706,1731783033634,-500.0,9.589e-05,2]
[342385707,1731783033645,-500.0,9.589e-05,2]
[342385708,1731783033655,-500.0,9.589e-05,2]
[342385709,1731783033665,-500.0,9.589e-05,2]
[342385710,1731783033675,-500.0,9.589e-05,2]
[342385711,1731783033685,-500.0,9.589e-05,2]
[342385712,1731783033695,-500.0,9.589e-05,2]
[342385713,1731783033706,-500.0,9.589e-05,2]
[342385714,1731783033716,-500.0,9.589e-05,2]
[342385715,1731783033726,-500.0,9.589e-05,2]
[342385716,1731783033736,-500.0,9.589e-05,2]
[342385717,1731783033745,-500.0,9.589e-05,2]
[342385718,1731783033756,-500.0,9.589e-05,2]
[342385719,1731783033765,-500.0,9.589e-05,2]
[342385720,1731783033775,-500.0,9.589e-05,2]
[342385721,1731783033785,-500.0,9.589e-05,2]
[342385722,1731783033795,-500.0,9.589e-05,2]
[342385723,1731783033804,-500.0,9.589e-05,2]
[342385724,1731783033814,-500.0,9.589e-05,2]
[342385725,1731783033823,-500.0,9.589e-05,2]
[342385726,1731783033833,-500.0,9.589e-05,2]
[342385727,1731783033843,-500.0,9.589e-05,2]
[342385728,1731783033853,-163.81721444,9.589e-05,2]
[342385729,1731783033862,-358.28142428,9.589e-05,2]
[342385730,1731783033872,-500.0,9.589e-05,2]
[342385731,1731783033881,-500.0,9.589e-05,2]
[342385732,1731783033890,-601.62,9.589e-05,2]
[342385733,1731783033900,-500.0,9.589e-05,2]
[342385734,1731783033909,-601.62,9.589e-05,2]
[342385735,1731783033918,-500.0,9.589e-05,2]
[342385736,1731783033930,-601.62,9.589e-05,2]
[342385737,1731783033940,-500.0,9.589e-05,2]
[342385738,1731783033950,-601.62,9.589e-05,2]
[342385739,1731783033959,-500.0,9.589e-05,2]
[342385740,1731783033968,-601.62,9.589e-05,2]
[342385741,1731783033978,-500.0,9.589e-05,2]
[342385742,1731783033988,-601.62,9.589e-05,2]
[342385743,1731783033998,-500.0,9.589e-05,2]
[342385744,1731783034009,-601.62,9.589e-05,2]
[342385745,1731783034018,-500.0,9.589e-05,2]
[342385746,1731783034029,-601.62,9.589e-05,2]
[342385747,1731783034039,-500.0,9.589e-05,2]
[342385748,1731783034048,-601.62,9.589e-05,2]
[342385749,1731783034057,-500.0,9.589e-05,2]
[342385750,1731783034068,-601.62,9.589e-05,2]
[342385751,1731783034078,-500.0,9.589e-05,2]
[342385752,1731783034087,-601.62,9.589e-05,2]
[342385753,1731783034097,-500.0,9.589e-05,2]
[342385754,1731783034107,-601.62,9.589e-05,2]
[342385755,1731783034117,-500.0,9.589e-05,2]
[342385756,1731783034127,-601.62,9.589e-05,2]
[342385757,1731783034409,-500.0,9.589e-05,2]
[342385758,1731783034419,-601.62,9.589e-05,2]
[342385759,1731783034432,-500.0,9.589e-05,2]
[342385760,1731783034446,-500.0,9.589e-05,2]
[342385761,1731783034456,-601.62,9.589e-05,2]
[342385762,1731783034466,-500.0,9.589e-05,2]
[342385763,1731783034477,-500.0,9.589e-05,2]
[342385764,1731783034488,-601.62,9.589e-05,2]
[342385765,1731783034497,-500.0,9.589e-05,2]
[342385766,1731783034507,-601.62,9.589e-05,2]
[342385767,1731783034517,-500.0,9.589e-05,2]
[342385768,1731783034529,-234.12,9.589e-05,2]
[342385769,1731783034538,-601.62,9.589e-05,2]
[342385770,1731783034549,-500.0,9.589e-05,2]
[342385771,1731783034558,-601.62,9.589e-05,2]
[342385772,1731783034568,-601.62,9.589e-05,2]
[342385773,1731783034578,-500.0,9.589e-05,2]
[342385774,1731783034587,-601.62,9.589e-05,2]
[342385775,1731783034597,-500.0,9.589e-05,2]
[342385776,1731783034606,-601.62,9.589e-05,2]
[342385777,1731783034616,-500.0,9.589e-05,2]
[342385778,1731783034625,-601.62,9.589e-05,2]
[342385779,1731783034635,-601.72112253,9.589e-05,2]
[342385780,1731783034645,-599.28000993,9.589e-05,2]
[342385781,1731783034655,-500.0,9.589e-05,2]
[342385782,1731783034665,-482.15562326,9.589e-05,2]
[342385783,1731783034676,-155.86736135,9.589e-05,2]
[342385784,1731783034686,-500.0,9.589e-05,2]
[342385785,1731783034696,-500.0,9.589e-05,2]
[342385786,1731783034705,-500.0,9.589e-05,2]
[342385787,1731783034715,-500.0,9.589e-05,2]
[342385788,1731783034724,-500.0,9.589e-05,2]
[342385789,1731783034734,-500.0,9.589e-05,2]
[342385790,1731783034743,-500.0,9.589e-05,2]
[342385791,1731783034753,-500.0,9.589e-05,2]
[342385792,1731783034761,-500.0,9.589e-05,2]
[342385793,1731783034771,-500.0,9.589e-05,2]
[342385794,1731783034780,-500.0,9.589e-05,2]
[342385795,1731783034790,-500.0,9.589e-05,2]
[342385796,1731783034799,-500.0,9.589e-05,2]
[342385797,1731783034810,-500.0,9.589e-05,2]
[342385798,1731783034819,-500.0,9.589e-05,2]
[342385799,1731783034829,-500.0,9.589e-05,2]
[342385800,1731783034839,-286.01952937,9.589e-05,2]
[342385801,1731783034848,-500.0,9.589e-05,2]
[342385802,1731783034858,-500.0,9.589e-05,2]
[342385803,1731783034867,-500.0,9.589e-05,2]
[342385804,1731783034877,-500.0,9.589e-05,2]
[342385805,1731783034887,-500.0,9.589e-05,2]
[342385806,1731783034897,-333.14,9.589e-05,2]
[342385807,1731783034907,-500.0,9.589e-05,2]
[342385808,1731783034916,-500.0,9.589e-05,2]
[342385809,1731783034927,-500.0,9.589e-05,2]